[Event "Titled Tuesday Blitz April 4 Early 2023"]
[White "Pajeken, Jakob Leon"]
[Black "Klepikov, Nikita"]
[WhiteFideId "12942839"]
[BlackFideId "24145220"]
[WhiteElo "2414"]
[BlackElo "2025"]
[Result "0-1"]
[Round "03"]
[TimeControl "180+2"]
[Date "2023.04.04"]
[WhiteClock "0:01:52"]
[BlackClock "0:01:01"]

1. Nf3 {[%clk 0:03:00]}  Nf6 {[%clk 0:02:59]} 2. c4 {[%clk 0:03:01]}  d6 {[%clk 0:02:59]} 3. b3 {[%clk 0:02:57]}  e5 {[%clk 0:02:56]} 4. Bb2 {[%clk 0:02:57]}  g6 {[%clk 0:02:42]} 5. g3 {[%clk 0:02:55]}  Bg7 {[%clk 0:02:42]} 6. Bg2 {[%clk 0:02:55]}  O-O {[%clk 0:02:42]} 7. O-O {[%clk 0:02:55]}  a5 {[%clk 0:02:29]} 8. Nc3 {[%clk 0:02:53]}  Re8 {[%clk 0:02:09]} 9. d4 {[%clk 0:02:51]}  e4 {[%clk 0:01:46]} 10. Ng5 {[%clk 0:02:50]}  Bf5 {[%clk 0:01:38]} 11. g4 {[%clk 0:02:37]}  Nxg4 {[%clk 0:01:34]} 12. Ngxe4 {[%clk 0:02:36]}  Qh4 {[%clk 0:01:28]} 13. h3 {[%clk 0:02:36]}  Bxe4 {[%clk 0:01:10]} 14. Nxe4 {[%clk 0:02:28]}  Rxe4 {[%clk 0:01:09]} 15. hxg4 {[%clk 0:02:00]}  Rxg4 {[%clk 0:01:10]} 16. e4 {[%clk 0:01:52]}  Qh3 {[%clk 0:01:01]} 0-1


[Site "https://www.chess.com"]

[Event "Titled Tuesday Blitz April 4 Early 2023"]
[White "Castellanos Villela, Alejandro"]
[Black "Mirzanurov, Bulat"]
[WhiteFideId "3446379"]
[BlackFideId "4184521"]
[WhiteElo "2103"]
[BlackElo "2019"]
[Result "1-0"]
[Round "03"]
[TimeControl "180+2"]
[Date "2023.04.04"]
[WhiteClock "0:00:06"]
[BlackClock "0:00:01"]

1. d4 {[%clk 0:03:00]}  d5 {[%clk 0:02:56]} 2. Nf3 {[%clk 0:02:59]}  Nf6 {[%clk 0:02:56]} 3. e3 {[%clk 0:02:58]}  c5 {[%clk 0:02:54]} 4. c3 {[%clk 0:02:56]}  e6 {[%clk 0:02:53]} 5. Bd3 {[%clk 0:02:56]}  Nc6 {[%clk 0:02:53]} 6. O-O {[%clk 0:02:56]}  Bd6 {[%clk 0:02:53]} 7. dxc5 {[%clk 0:02:56]}  Bxc5 {[%clk 0:02:52]} 8. Nbd2 {[%clk 0:02:56]}  O-O {[%clk 0:02:52]} 9. Qc2 {[%clk 0:02:52]}  e5 {[%clk 0:02:35]} 10. e4 {[%clk 0:02:52]}  d4 {[%clk 0:02:35]} 11. cxd4 {[%clk 0:02:51]}  Bxd4 {[%clk 0:02:35]} 12. Nxd4 {[%clk 0:02:49]}  Nxd4 {[%clk 0:02:35]} 13. Qd1 {[%clk 0:02:47]}  Ng4 {[%clk 0:02:00]} 14. Nf3 {[%clk 0:02:39]}  Nxf3+ {[%clk 0:01:33]} 15. Qxf3 {[%clk 0:02:38]}  Be6 {[%clk 0:01:29]} 16. h3 {[%clk 0:02:31]}  Nf6 {[%clk 0:01:29]} 17. Bg5 {[%clk 0:02:27]}  Qe7 {[%clk 0:01:27]} 18. Rfd1 {[%clk 0:02:04]}  Rfd8 {[%clk 0:01:25]} 19. Bf1 {[%clk 0:02:04]}  h6 {[%clk 0:01:24]} 20. Bh4 {[%clk 0:02:04]}  Rac8 {[%clk 0:01:15]} 21. b3 {[%clk 0:01:48]}  Bd7 {[%clk 0:01:01]} 22. Bc4 {[%clk 0:01:39]}  Bc6 {[%clk 0:01:01]} 23. Bxf6 {[%clk 0:01:25]}  Qxf6 {[%clk 0:00:59]} 24. Qxf6 {[%clk 0:01:25]}  gxf6 {[%clk 0:01:00]} 25. f3 {[%clk 0:01:25]}  b5 {[%clk 0:00:57]} 26. Be2 {[%clk 0:01:19]}  a6 {[%clk 0:00:48]} 27. Kf2 {[%clk 0:01:18]}  Kf8 {[%clk 0:00:45]} 28. Ke3 {[%clk 0:01:18]}  Ke7 {[%clk 0:00:46]} 29. Rac1 {[%clk 0:00:58]}  Rxd1 {[%clk 0:00:39]} 30. Rxd1 {[%clk 0:00:57]}  Bb7 {[%clk 0:00:38]} 31. Rd2 {[%clk 0:00:51]}  Rc3+ {[%clk 0:00:36]} 32. Rd3 {[%clk 0:00:45]}  Rc2 {[%clk 0:00:32]} 33. Rd2 {[%clk 0:00:45]}  Rxd2 {[%clk 0:00:30]} 34. Kxd2 {[%clk 0:00:44]}  Ke6 {[%clk 0:00:21]} 35. Kc3 {[%clk 0:00:39]}  f5 {[%clk 0:00:20]} 36. Bd3 {[%clk 0:00:35]}  f4 {[%clk 0:00:19]} 37. Kb4 {[%clk 0:00:33]}  Kf6 {[%clk 0:00:18]} 38. Ka5 {[%clk 0:00:28]}  Kg5 {[%clk 0:00:18]} 39. Kb6 {[%clk 0:00:17]}  Bc8 {[%clk 0:00:19]} 40. a4 {[%clk 0:00:17]}  bxa4 {[%clk 0:00:17]} 41. bxa4 {[%clk 0:00:17]}  Kh4 {[%clk 0:00:16]} 42. Bxa6 {[%clk 0:00:18]}  Bd7 {[%clk 0:00:16]} 43. Bb5 {[%clk 0:00:17]}  Bc8 {[%clk 0:00:16]} 44. a5 {[%clk 0:00:17]}  Kg3 {[%clk 0:00:15]} 45. Bd7 {[%clk 0:00:11]}  Bxd7 {[%clk 0:00:09]} 46. a6 {[%clk 0:00:12]}  Kxg2 {[%clk 0:00:05]} 47. a7 {[%clk 0:00:12]}  Kxf3 {[%clk 0:00:05]} 48. a8=Q {[%clk 0:00:12]}  Bxh3 {[%clk 0:00:03]} 49. Qa3+ {[%clk 0:00:11]}  Kg4 {[%clk 0:00:03]} 50. Qf8 {[%clk 0:00:09]}  f3 {[%clk 0:00:02]} 51. Qg7+ {[%clk 0:00:10]}  Kf4 {[%clk 0:00:02]} 52. Qxh6+ {[%clk 0:00:10]}  Kg3 {[%clk 0:00:03]} 53. Qg7+ {[%clk 0:00:08]}  Kf2 {[%clk 0:00:02]} 54. Qxe5 {[%clk 0:00:08]}  Kf1 {[%clk 0:00:01]} 55. Qh5 {[%clk 0:00:06]}  Bg2 {[%clk 0:00:01]} 56. e5 {[%clk 0:00:06]}  f2 {[%clk 0:00:01]} 57. Qd1# {[%clk 0:00:06]} 1-0


[Site "https://www.chess.com"]

[Event "Titled Tuesday Blitz April 4 Early 2023"]
[White "Leebit02"]
[Black "Drori, Saar"]
[BlackFideId "2812444"]
[WhiteElo "2355"]
[BlackElo "2322"]
[Result "0-1"]
[Round "03"]
[TimeControl "180+2"]
[Date "2023.04.04"]
[WhiteClock "0:00:08"]
[BlackClock "0:00:06"]

1. Nf3 {[%clk 0:03:00]}  c5 {[%clk 0:02:59]} 2. b3 {[%clk 0:02:58]}  d6 {[%clk 0:02:58]} 3. Bb2 {[%clk 0:02:57]}  e5 {[%clk 0:02:59]} 4. e3 {[%clk 0:02:51]}  e4 {[%clk 0:02:51]} 5. Ng1 {[%clk 0:02:49]}  Nc6 {[%clk 0:02:50]} 6. d3 {[%clk 0:02:48]}  exd3 {[%clk 0:02:43]} 7. cxd3 {[%clk 0:02:47]}  Nf6 {[%clk 0:02:44]} 8. Nf3 {[%clk 0:02:43]}  d5 {[%clk 0:02:41]} 9. Be2 {[%clk 0:02:34]}  Bd6 {[%clk 0:02:40]} 10. O-O {[%clk 0:02:34]}  O-O {[%clk 0:02:40]} 11. d4 {[%clk 0:02:30]}  cxd4 {[%clk 0:02:24]} 12. Nxd4 {[%clk 0:02:26]}  a6 {[%clk 0:02:12]} 13. Nd2 {[%clk 0:02:24]}  Bd7 {[%clk 0:02:01]} 14. N2f3 {[%clk 0:02:22]}  Re8 {[%clk 0:01:56]} 15. a3 {[%clk 0:02:19]}  Qb6 {[%clk 0:01:40]} 16. b4 {[%clk 0:02:12]}  Ne5 {[%clk 0:01:34]} 17. Nxe5 {[%clk 0:02:09]}  Bxe5 {[%clk 0:01:35]} 18. Rc1 {[%clk 0:02:05]}  Ne4 {[%clk 0:01:19]} 19. Bd3 {[%clk 0:01:55]}  Qh6 {[%clk 0:01:10]} 20. g3 {[%clk 0:01:48]}  Qh3 {[%clk 0:00:54]} 21. Qe2 {[%clk 0:01:36]}  Bxd4 {[%clk 0:00:17]} 22. Bxd4 {[%clk 0:01:35]}  Bc6 {[%clk 0:00:12]} 23. f3 {[%clk 0:01:28]}  Nd6 {[%clk 0:00:12]} 24. Qg2 {[%clk 0:01:05]}  Qe6 {[%clk 0:00:11]} 25. Rfe1 {[%clk 0:01:03]}  Bb5 {[%clk 0:00:12]} 26. Bb1 {[%clk 0:01:00]}  Nc4 {[%clk 0:00:11]} 27. Qc2 {[%clk 0:00:58]}  g6 {[%clk 0:00:09]} 28. Qc3 {[%clk 0:00:57]}  Rac8 {[%clk 0:00:09]} 29. e4 {[%clk 0:00:43]}  Nd6 {[%clk 0:00:08]} 30. exd5 {[%clk 0:00:28]}  Qxd5 {[%clk 0:00:08]} 31. Rxe8+ {[%clk 0:00:28]}  Bxe8 {[%clk 0:00:07]} 32. Bc5 {[%clk 0:00:22]}  b6 {[%clk 0:00:07]} 33. Be4 {[%clk 0:00:11]}  Nxe4 {[%clk 0:00:06]} 34. fxe4 {[%clk 0:00:11]}  Qe6 {[%clk 0:00:06]} 35. Qd4 {[%clk 0:00:08]}  bxc5 {[%clk 0:00:06]} 36. Rxc5 {[%clk 0:00:09]}  Rxc5 {[%clk 0:00:06]} 37. bxc5 {[%clk 0:00:10]}  Bc6 {[%clk 0:00:06]} 38. e5 {[%clk 0:00:09]}  Qd5 {[%clk 0:00:06]} 39. Qc3 {[%clk 0:00:08]}  Qg2# {[%clk 0:00:06]} 0-1


[Site "https://www.chess.com"]

[Event "Titled Tuesday Blitz April 4 Early 2023"]
[White "Pham, Le Thao Nguyen"]
[Black "Todorovic, Bojan"]
[WhiteFideId "12401226"]
[BlackFideId "917087"]
[WhiteElo "2286"]
[BlackElo "2266"]
[Result "1-0"]
[Round "03"]
[TimeControl "180+2"]
[Date "2023.04.04"]
[WhiteClock "0:00:37"]
[BlackClock "0:00:32"]

1. d4 {[%clk 0:02:59]}  Nf6 {[%clk 0:02:57]} 2. Nf3 {[%clk 0:02:59]}  g6 {[%clk 0:02:57]} 3. g3 {[%clk 0:02:38]}  Bg7 {[%clk 0:02:56]} 4. Bg2 {[%clk 0:02:39]}  O-O {[%clk 0:02:56]} 5. O-O {[%clk 0:02:29]}  d6 {[%clk 0:02:55]} 6. b3 {[%clk 0:02:23]}  c5 {[%clk 0:02:52]} 7. Bb2 {[%clk 0:02:22]}  Ne4 {[%clk 0:02:49]} 8. Nbd2 {[%clk 0:02:17]}  Nxd2 {[%clk 0:02:35]} 9. Qxd2 {[%clk 0:02:18]}  Nc6 {[%clk 0:02:35]} 10. c4 {[%clk 0:02:14]}  Qa5 {[%clk 0:02:34]} 11. Qxa5 {[%clk 0:02:08]}  Nxa5 {[%clk 0:02:33]} 12. Rad1 {[%clk 0:01:59]}  Nc6 {[%clk 0:02:32]} 13. Rd2 {[%clk 0:01:59]}  Bg4 {[%clk 0:02:23]} 14. dxc5 {[%clk 0:01:49]}  Bxb2 {[%clk 0:02:22]} 15. Rxb2 {[%clk 0:01:50]}  dxc5 {[%clk 0:02:22]} 16. Rd2 {[%clk 0:01:50]}  Rfd8 {[%clk 0:02:21]} 17. Rfd1 {[%clk 0:01:50]}  Rxd2 {[%clk 0:02:03]} 18. Rxd2 {[%clk 0:01:51]}  Rd8 {[%clk 0:02:03]} 19. Rxd8+ {[%clk 0:01:41]}  Nxd8 {[%clk 0:02:03]} 20. e3 {[%clk 0:01:40]}  Bf5 {[%clk 0:02:01]} 21. Nd2 {[%clk 0:01:39]}  Bc2 {[%clk 0:01:51]} 22. Kf1 {[%clk 0:01:34]}  a5 {[%clk 0:01:50]} 23. Be4 {[%clk 0:01:32]}  Bxe4 {[%clk 0:01:41]} 24. Nxe4 {[%clk 0:01:33]}  b6 {[%clk 0:01:42]} 25. Nc3 {[%clk 0:01:33]}  Nc6 {[%clk 0:01:35]} 26. Nd5 {[%clk 0:01:29]}  Nb4 {[%clk 0:01:34]} 27. Nxb6 {[%clk 0:01:20]}  Nxa2 {[%clk 0:01:33]} 28. Na4 {[%clk 0:01:20]}  Nb4 {[%clk 0:01:04]} 29. Nxc5 {[%clk 0:01:13]}  Kg7 {[%clk 0:01:04]} 30. Ke2 {[%clk 0:01:08]}  Kf6 {[%clk 0:01:03]} 31. Kd2 {[%clk 0:00:57]}  Kf5 {[%clk 0:01:01]} 32. f3 {[%clk 0:00:53]}  g5 {[%clk 0:00:54]} 33. h3 {[%clk 0:00:48]}  Ke5 {[%clk 0:00:48]} 34. Nd3+ {[%clk 0:00:45]}  Kd6 {[%clk 0:00:48]} 35. Nxb4 {[%clk 0:00:44]}  axb4 {[%clk 0:00:48]} 36. Kd3 {[%clk 0:00:45]}  f5 {[%clk 0:00:42]} 37. g4 {[%clk 0:00:40]}  e6 {[%clk 0:00:35]} 38. Kd4 {[%clk 0:00:37]}  e5+ {[%clk 0:00:32]} 39. Kd3 {[%clk 0:00:37]} 1-0


[Site "https://www.chess.com"]

[Event "Titled Tuesday Blitz April 4 Early 2023"]
[White "Tomaszewski, Kacper"]
[Black "Matveeva, Olga"]
[WhiteFideId "1127373"]
[BlackFideId "24107018"]
[WhiteElo "2211"]
[BlackElo "2056"]
[Result "0-1"]
[Round "03"]
[TimeControl "180+2"]
[Date "2023.04.04"]
[WhiteClock "0:00:44"]
[BlackClock "0:01:19"]

1. e4 {[%clk 0:03:00]}  e6 {[%clk 0:02:59]} 2. Nf3 {[%clk 0:03:00]}  d5 {[%clk 0:03:00]} 3. e5 {[%clk 0:02:59]}  c5 {[%clk 0:02:59]} 4. c3 {[%clk 0:03:00]}  d4 {[%clk 0:02:57]} 5. b4 {[%clk 0:02:59]}  Nc6 {[%clk 0:02:55]} 6. b5 {[%clk 0:02:57]}  Nce7 {[%clk 0:02:39]} 7. cxd4 {[%clk 0:02:43]}  cxd4 {[%clk 0:02:40]} 8. Bb2 {[%clk 0:02:41]}  Nf5 {[%clk 0:02:29]} 9. Bd3 {[%clk 0:02:36]}  Bc5 {[%clk 0:02:26]} 10. Qa4 {[%clk 0:02:27]}  Nge7 {[%clk 0:02:14]} 11. O-O {[%clk 0:02:11]}  O-O {[%clk 0:02:13]} 12. Na3 {[%clk 0:02:12]}  Nd5 {[%clk 0:02:07]} 13. Bxf5 {[%clk 0:02:04]}  exf5 {[%clk 0:02:08]} 14. Bxd4 {[%clk 0:02:00]}  Nb6 {[%clk 0:01:53]} 15. Qc2 {[%clk 0:01:16]}  Bxd4 {[%clk 0:01:53]} 16. Nxd4 {[%clk 0:01:16]}  Qxd4 {[%clk 0:01:54]} 17. Rac1 {[%clk 0:01:12]}  Be6 {[%clk 0:01:51]} 18. Qc3 {[%clk 0:01:08]}  Qxc3 {[%clk 0:01:47]} 19. dxc3 {[%clk 0:01:09]}  Rac8 {[%clk 0:01:45]} 20. Rc2 {[%clk 0:01:04]}  Rc5 {[%clk 0:01:43]} 21. f4 {[%clk 0:01:02]}  Rfc8 {[%clk 0:01:42]} 22. Rfc1 {[%clk 0:01:02]}  Nd5 {[%clk 0:01:36]} 23. g3 {[%clk 0:00:58]}  Rxc3 {[%clk 0:01:34]} 24. Rxc3 {[%clk 0:00:55]}  Rxc3 {[%clk 0:01:35]} 25. Rxc3 {[%clk 0:00:55]}  Nxc3 {[%clk 0:01:36]} 26. b6 {[%clk 0:00:53]}  axb6 {[%clk 0:01:35]} 27. Kf2 {[%clk 0:00:53]}  Nxa2 {[%clk 0:01:34]} 28. Ke3 {[%clk 0:00:53]}  Nb4 {[%clk 0:01:31]} 29. Kd4 {[%clk 0:00:52]}  Nc6+ {[%clk 0:01:31]} 30. Kc3 {[%clk 0:00:51]}  Kf8 {[%clk 0:01:31]} 31. Nb5 {[%clk 0:00:51]}  Ke7 {[%clk 0:01:29]} 32. Nd6 {[%clk 0:00:51]}  f6 {[%clk 0:01:25]} 33. Nxb7 {[%clk 0:00:45]}  fxe5 {[%clk 0:01:24]} 34. fxe5 {[%clk 0:00:44]}  Nxe5 {[%clk 0:01:25]} 35. Kb4 {[%clk 0:00:44]}  Bd5 {[%clk 0:01:19]} 0-1


[Site "https://www.chess.com"]

[Event "Titled Tuesday Blitz April 4 Early 2023"]
[White "I_KID_you_not"]
[Black "Filgueira, Hernan"]
[BlackFideId "101770"]
[WhiteElo "2340"]
[BlackElo "2363"]
[Result "0-1"]
[Round "03"]
[TimeControl "180+2"]
[Date "2023.04.04"]
[WhiteClock "0:00:09"]
[BlackClock "0:01:08"]

1. e4 {[%clk 0:03:00]}  d6 {[%clk 0:02:58]} 2. d4 {[%clk 0:03:00]}  Nf6 {[%clk 0:02:59]} 3. Nc3 {[%clk 0:03:01]}  g6 {[%clk 0:02:59]} 4. Bf4 {[%clk 0:03:01]}  Nc6 {[%clk 0:02:55]} 5. d5 {[%clk 0:02:48]}  e5 {[%clk 0:02:54]} 6. Be3 {[%clk 0:02:47]}  Ne7 {[%clk 0:02:53]} 7. f3 {[%clk 0:02:41]}  Bg7 {[%clk 0:02:48]} 8. Bc4 {[%clk 0:02:34]}  c6 {[%clk 0:02:47]} 9. a4 {[%clk 0:02:33]}  O-O {[%clk 0:02:43]} 10. Nge2 {[%clk 0:02:33]}  cxd5 {[%clk 0:02:36]} 11. Nxd5 {[%clk 0:02:32]}  Nexd5 {[%clk 0:02:30]} 12. Bxd5 {[%clk 0:02:32]}  Nxd5 {[%clk 0:02:30]} 13. Qxd5 {[%clk 0:02:32]}  Qc7 {[%clk 0:02:21]} 14. Nc3 {[%clk 0:02:29]}  Be6 {[%clk 0:02:19]} 15. Qd2 {[%clk 0:02:28]}  a6 {[%clk 0:02:13]} 16. O-O {[%clk 0:02:26]}  b6 {[%clk 0:02:05]} 17. Rfd1 {[%clk 0:02:10]}  Rfd8 {[%clk 0:02:02]} 18. Qf2 {[%clk 0:02:09]}  Rab8 {[%clk 0:01:56]} 19. Rd2 {[%clk 0:02:07]}  b5 {[%clk 0:01:55]} 20. axb5 {[%clk 0:02:04]}  axb5 {[%clk 0:01:54]} 21. Ra7 {[%clk 0:02:04]}  Qc6 {[%clk 0:01:54]} 22. h3 {[%clk 0:01:43]}  Ra8 {[%clk 0:01:52]} 23. Nd5 {[%clk 0:01:27]}  Bxd5 {[%clk 0:01:47]} 24. Rxd5 {[%clk 0:01:27]}  Rxa7 {[%clk 0:01:46]} 25. Bxa7 {[%clk 0:01:27]}  Ra8 {[%clk 0:01:44]} 26. Qb6 {[%clk 0:01:01]}  Qxc2 {[%clk 0:01:38]} 27. Qxb5 {[%clk 0:01:01]}  Bh6 {[%clk 0:01:25]} 28. Qb7 {[%clk 0:00:09]}  Rc8 {[%clk 0:01:08]} 0-1


[Site "https://www.chess.com"]

[Event "Titled Tuesday Blitz April 4 Early 2023"]
[White "Omelja, Artem"]
[Black "Ovezdurdyyeva, Jemal"]
[WhiteFideId "14119846"]
[BlackFideId "14001888"]
[WhiteElo "2404"]
[BlackElo "2043"]
[Result "1-0"]
[Round "03"]
[TimeControl "180+2"]
[Date "2023.04.04"]
[WhiteClock "0:01:07"]
[BlackClock "0:00:13"]

1. e4 {[%clk 0:03:00]}  d6 {[%clk 0:02:59]} 2. d4 {[%clk 0:02:56]}  Nf6 {[%clk 0:02:59]} 3. Nc3 {[%clk 0:02:57]}  g6 {[%clk 0:02:59]} 4. f3 {[%clk 0:02:57]}  c6 {[%clk 0:03:00]} 5. Be3 {[%clk 0:02:58]}  b5 {[%clk 0:03:00]} 6. Qd2 {[%clk 0:02:58]}  h5 {[%clk 0:03:00]} 7. O-O-O {[%clk 0:02:58]}  Bg7 {[%clk 0:02:57]} 8. Kb1 {[%clk 0:02:58]}  b4 {[%clk 0:02:57]} 9. Nce2 {[%clk 0:02:57]}  Qa5 {[%clk 0:02:57]} 10. Nc1 {[%clk 0:02:58]}  Be6 {[%clk 0:02:57]} 11. Nge2 {[%clk 0:02:53]}  Bc4 {[%clk 0:02:42]} 12. Nf4 {[%clk 0:02:49]}  Bxf1 {[%clk 0:02:29]} 13. Rdxf1 {[%clk 0:02:50]}  Nbd7 {[%clk 0:02:29]} 14. h4 {[%clk 0:02:38]}  Nb6 {[%clk 0:02:29]} 15. Nb3 {[%clk 0:02:37]}  Qb5 {[%clk 0:02:25]} 16. Qd3 {[%clk 0:02:35]}  Nc4 {[%clk 0:02:22]} 17. Bc1 {[%clk 0:02:34]}  a5 {[%clk 0:02:21]} 18. Nd2 {[%clk 0:02:32]}  Nxd2+ {[%clk 0:02:17]} 19. Bxd2 {[%clk 0:02:32]}  Qb6 {[%clk 0:02:12]} 20. e5 {[%clk 0:02:30]}  dxe5 {[%clk 0:01:53]} 21. dxe5 {[%clk 0:02:21]}  Rd8 {[%clk 0:01:53]} 22. exf6 {[%clk 0:02:20]}  Rxd3 {[%clk 0:01:52]} 23. fxg7 {[%clk 0:02:20]}  Rg8 {[%clk 0:01:50]} 24. Nxd3 {[%clk 0:02:19]}  Rxg7 {[%clk 0:01:50]} 25. Re1 {[%clk 0:02:18]}  f6 {[%clk 0:01:50]} 26. Be3 {[%clk 0:02:16]}  Qb5 {[%clk 0:01:47]} 27. Bc5 {[%clk 0:02:16]}  Kd7 {[%clk 0:01:27]} 28. Re3 {[%clk 0:02:09]}  e5 {[%clk 0:01:24]} 29. Rhe1 {[%clk 0:02:09]}  Kc7 {[%clk 0:01:23]} 30. f4 {[%clk 0:02:06]}  exf4 {[%clk 0:01:15]} 31. Nxf4 {[%clk 0:02:06]}  Rd7 {[%clk 0:01:15]} 32. Ne6+ {[%clk 0:02:01]}  Kb7 {[%clk 0:01:14]} 33. Bd4 {[%clk 0:01:51]}  a4 {[%clk 0:01:09]} 34. Nc5+ {[%clk 0:01:51]}  Kc7 {[%clk 0:01:08]} 35. Nxd7 {[%clk 0:01:52]}  Kxd7 {[%clk 0:01:08]} 36. Bxf6 {[%clk 0:01:49]}  a3 {[%clk 0:01:06]} 37. Rd3+ {[%clk 0:01:47]}  Kc7 {[%clk 0:01:03]} 38. Re7+ {[%clk 0:01:46]}  Kb6 {[%clk 0:01:00]} 39. Bd4+ {[%clk 0:01:44]}  c5 {[%clk 0:01:00]} 40. Bf2 {[%clk 0:01:31]}  Qc4 {[%clk 0:00:52]} 41. bxa3 {[%clk 0:01:17]}  bxa3 {[%clk 0:00:50]} 42. Rxa3 {[%clk 0:01:14]}  Qf1+ {[%clk 0:00:46]} 43. Be1 {[%clk 0:01:15]}  Qxg2 {[%clk 0:00:42]} 44. Rb3+ {[%clk 0:01:09]}  Kc6 {[%clk 0:00:41]} 45. Rbb7 {[%clk 0:01:08]}  c4 {[%clk 0:00:38]} 46. Bc3 {[%clk 0:01:07]}  Qh1+ {[%clk 0:00:29]} 47. Kb2 {[%clk 0:01:07]}  Qxh4 {[%clk 0:00:30]} 48. a4 {[%clk 0:01:07]}  Kd6 {[%clk 0:00:23]} 49. a5 {[%clk 0:01:07]}  Qg4 {[%clk 0:00:14]} 50. a6 {[%clk 0:01:07]}  h4 {[%clk 0:00:13]} 51. a7 {[%clk 0:01:07]}  Qc8 {[%clk 0:00:13]} 52. Rb8 {[%clk 0:01:07]} 1-0


[Site "https://www.chess.com"]

[Event "Titled Tuesday Blitz April 4 Early 2023"]
[White "Thecourseoisildur"]
[Black "Budrewicz, Krzysztof"]
[BlackFideId "1127950"]
[WhiteElo "2516"]
[BlackElo "2230"]
[Result "0-1"]
[Round "03"]
[TimeControl "180+2"]
[Date "2023.04.04"]
[WhiteClock "0:00:02"]
[BlackClock "0:00:14"]

1. e4 {[%clk 0:03:00]}  e5 {[%clk 0:02:57]} 2. Nf3 {[%clk 0:03:01]}  Nc6 {[%clk 0:02:57]} 3. d4 {[%clk 0:03:01]}  exd4 {[%clk 0:02:57]} 4. Nxd4 {[%clk 0:03:02]}  Bc5 {[%clk 0:02:56]} 5. Nb3 {[%clk 0:03:01]}  Bb6 {[%clk 0:02:56]} 6. Nc3 {[%clk 0:03:02]}  d6 {[%clk 0:02:56]} 7. Qe2 {[%clk 0:02:56]}  Nge7 {[%clk 0:02:56]} 8. Be3 {[%clk 0:02:55]}  O-O {[%clk 0:02:54]} 9. Bxb6 {[%clk 0:02:54]}  axb6 {[%clk 0:02:54]} 10. O-O-O {[%clk 0:02:55]}  Be6 {[%clk 0:02:55]} 11. Kb1 {[%clk 0:02:51]}  Nb4 {[%clk 0:02:54]} 12. f4 {[%clk 0:02:42]}  Qb8 {[%clk 0:02:45]} 13. a3 {[%clk 0:02:31]}  Bxb3 {[%clk 0:02:43]} 14. cxb3 {[%clk 0:02:30]}  Nbc6 {[%clk 0:02:42]} 15. g4 {[%clk 0:02:30]}  Qa7 {[%clk 0:02:39]} 16. h4 {[%clk 0:02:26]}  Rfe8 {[%clk 0:02:36]} 17. g5 {[%clk 0:02:24]}  Qa5 {[%clk 0:02:32]} 18. h5 {[%clk 0:02:18]}  Rad8 {[%clk 0:02:18]} 19. b4 {[%clk 0:02:07]}  Qa8 {[%clk 0:02:18]} 20. g6 {[%clk 0:01:55]}  fxg6 {[%clk 0:02:08]} 21. hxg6 {[%clk 0:01:55]}  h6 {[%clk 0:02:07]} 22. Qc4+ {[%clk 0:01:50]}  Kh8 {[%clk 0:02:04]} 23. Qf7 {[%clk 0:01:49]}  Ng8 {[%clk 0:01:59]} 24. Bc4 {[%clk 0:01:29]}  Re7 {[%clk 0:01:54]} 25. Qf5 {[%clk 0:01:25]}  Rf8 {[%clk 0:01:54]} 26. Qg4 {[%clk 0:01:17]}  Qc8 {[%clk 0:01:40]} 27. Qg5 {[%clk 0:01:01]}  Qe8 {[%clk 0:01:31]} 28. Bf7 {[%clk 0:00:31]}  Rexf7 {[%clk 0:01:27]} 29. gxf7 {[%clk 0:00:31]}  Qxf7 {[%clk 0:01:27]} 30. Nd5 {[%clk 0:00:25]}  Nd8 {[%clk 0:01:21]} 31. Rdg1 {[%clk 0:00:21]}  Ne6 {[%clk 0:01:22]} 32. Qg4 {[%clk 0:00:21]}  c6 {[%clk 0:01:21]} 33. Nxb6 {[%clk 0:00:19]}  Nxf4 {[%clk 0:01:21]} 34. Nc4 {[%clk 0:00:16]}  Rd8 {[%clk 0:01:07]} 35. Ne3 {[%clk 0:00:12]}  g6 {[%clk 0:00:45]} 36. Nf5 {[%clk 0:00:09]}  gxf5 {[%clk 0:00:38]} 37. Qxf4 {[%clk 0:00:09]}  Kh7 {[%clk 0:00:36]} 38. exf5 {[%clk 0:00:07]}  Rf8 {[%clk 0:00:36]} 39. Ka1 {[%clk 0:00:05]}  Qxf5 {[%clk 0:00:29]} 40. Qxd6 {[%clk 0:00:03]}  Qf6 {[%clk 0:00:30]} 41. Qd3+ {[%clk 0:00:03]}  Qf5 {[%clk 0:00:28]} 42. Qc3 {[%clk 0:00:02]}  Rf7 {[%clk 0:00:27]} 43. Qc4 {[%clk 0:00:02]}  Qd5 {[%clk 0:00:15]} 44. Qg4 {[%clk 0:00:02]}  Ne7 {[%clk 0:00:14]} 0-1


[Site "https://www.chess.com"]

[Event "Titled Tuesday Blitz April 4 Early 2023"]
[White "Makaj, Marko"]
[Black "Levitan, Caleb Levi"]
[WhiteFideId "14508141"]
[BlackFideId "14332620"]
[WhiteElo "2302"]
[BlackElo "1963"]
[Result "1-0"]
[Round "03"]
[TimeControl "180+2"]
[Date "2023.04.04"]
[WhiteClock "0:01:12"]
[BlackClock "0:00:08"]

1. d4 {[%clk 0:03:00]}  d5 {[%clk 0:02:58]} 2. Bf4 {[%clk 0:03:00]}  c5 {[%clk 0:02:57]} 3. e3 {[%clk 0:03:01]}  Nc6 {[%clk 0:02:57]} 4. c3 {[%clk 0:02:45]}  Qb6 {[%clk 0:02:51]} 5. Qb3 {[%clk 0:02:45]}  c4 {[%clk 0:02:50]} 6. Qc2 {[%clk 0:02:45]}  e5 {[%clk 0:02:50]} 7. dxe5 {[%clk 0:02:43]}  Bf5 {[%clk 0:02:49]} 8. Qc1 {[%clk 0:02:43]}  g5 {[%clk 0:02:47]} 9. Bg3 {[%clk 0:02:38]}  h5 {[%clk 0:02:46]} 10. h3 {[%clk 0:02:38]}  Nge7 {[%clk 0:02:26]} 11. Nf3 {[%clk 0:02:38]}  h4 {[%clk 0:02:18]} 12. Bh2 {[%clk 0:02:37]}  g4 {[%clk 0:02:16]} 13. hxg4 {[%clk 0:02:33]}  Bxg4 {[%clk 0:02:16]} 14. Nbd2 {[%clk 0:02:33]}  Bg7 {[%clk 0:02:15]} 15. Bf4 {[%clk 0:02:33]}  Ng6 {[%clk 0:02:12]} 16. Nd4 {[%clk 0:02:28]}  Bxe5 {[%clk 0:01:59]} 17. Bxe5 {[%clk 0:02:21]}  Ncxe5 {[%clk 0:01:58]} 18. N2f3 {[%clk 0:02:19]}  Bxf3 {[%clk 0:01:53]} 19. gxf3 {[%clk 0:02:19]}  O-O-O {[%clk 0:01:38]} 20. f4 {[%clk 0:02:19]}  Nc6 {[%clk 0:01:36]} 21. Qd2 {[%clk 0:02:18]}  Rhe8 {[%clk 0:01:25]} 22. O-O-O {[%clk 0:02:17]}  a5 {[%clk 0:01:02]} 23. Bh3+ {[%clk 0:02:17]}  Kb8 {[%clk 0:01:01]} 24. Bf5 {[%clk 0:02:15]}  a4 {[%clk 0:01:00]} 25. a3 {[%clk 0:02:14]}  Nge7 {[%clk 0:00:58]} 26. Bc2 {[%clk 0:02:13]}  Qa5 {[%clk 0:00:57]} 27. Rxh4 {[%clk 0:02:11]}  Nxd4 {[%clk 0:00:53]} 28. Qxd4 {[%clk 0:02:10]}  Nc6 {[%clk 0:00:52]} 29. Qf6 {[%clk 0:02:04]}  Rd7 {[%clk 0:00:45]} 30. Rh5 {[%clk 0:02:02]}  Red8 {[%clk 0:00:40]} 31. Bf5 {[%clk 0:01:51]}  Rc7 {[%clk 0:00:37]} 32. Be4 {[%clk 0:01:47]}  Rcd7 {[%clk 0:00:31]} 33. Rf5 {[%clk 0:01:45]}  Qb6 {[%clk 0:00:23]} 34. Bc2 {[%clk 0:01:44]}  Qc7 {[%clk 0:00:21]} 35. Qg5 {[%clk 0:01:42]}  Ne7 {[%clk 0:00:19]} 36. Rxf7 {[%clk 0:01:41]}  Nc6 {[%clk 0:00:18]} 37. Rxd7 {[%clk 0:01:41]}  Qxd7 {[%clk 0:00:18]} 38. Bxa4 {[%clk 0:01:39]}  Re8 {[%clk 0:00:13]} 39. Qxd5 {[%clk 0:01:37]}  Qh7 {[%clk 0:00:12]} 40. Bxc6 {[%clk 0:01:33]}  bxc6 {[%clk 0:00:12]} 41. Qxc6 {[%clk 0:01:33]}  Rc8 {[%clk 0:00:11]} 42. Qb5+ {[%clk 0:01:32]}  Ka8 {[%clk 0:00:11]} 43. Qd5+ {[%clk 0:01:20]}  Kb8 {[%clk 0:00:10]} 44. Rh1 {[%clk 0:01:20]}  Qf7 {[%clk 0:00:08]} 45. Qxf7 {[%clk 0:01:12]} 1-0


[Site "https://www.chess.com"]